bitfinex/quotes_BTCUSD_20250316
["timestamp","ask_amount","ask_price","bid_price","bid_amount"]
[1742145410056,0.0003388,84046.0,84044.0,0.64631485]
[1742145410462,0.0003388,84046.0,84044.0,0.64731485]
[1742145411343,6e-07,84049.0,84048.0,0.3808]
[1742145411535,9e-07,84050.0,84049.0,0.60260285]
[1742145411682,9e-07,84050.0,84049.0,1.13387788]
[1742145412093,9e-07,84050.0,84049.0,1.18387788]
[1742145413134,0.0010009,84050.0,84049.0,1.18887788]
[1742145413499,0.0010009,84050.0,84049.0,1.18387788]
[1742145414738,0.0010009,84050.0,84049.0,0.838242]
[1742145415143,0.0010009,84050.0,84049.0,0.74708285]
[1742145415987,9e-07,84050.0,84049.0,0.74108285]
[1742145416190,9e-07,84050.0,84049.0,0.74708285]
[1742145418831,9e-07,84050.0,84049.0,2.24708285]
[1742145423331,9e-07,84050.0,84049.0,2.42165788]
[1742145423855,0.0001692,84067.0,84066.0,0.59786185]
[1742145424065,0.0001692,84067.0,84066.0,1.15300185]
[1742145424534,0.0001692,84067.0,84066.0,1.32657688]
[1742145424730,0.0001692,84067.0,84066.0,2.82657688]
[1742145425225,0.00058076,84067.0,84066.0,2.82657688]
[1742145425997,0.00058076,84067.0,84066.0,2.74109259]
[1742145426655,0.00058076,84067.0,84066.0,1.24109259]
[1742145428225,0.00058076,84067.0,84066.0,1.23509259]
[1742145428433,0.00058076,84067.0,84066.0,1.24105259]
[1742145428636,0.00058076,84067.0,84066.0,2.73505259]
[1742145429081,0.00058076,84067.0,84066.0,2.74105259]
[1742145431487,0.0003398,84091.0,84090.0,0.32643285]
[1742145431685,0.0001697,84098.0,84097.0,0.011891]
[1742145431891,0.0001697,84098.0,84097.0,0.51668785]
[1742145432168,0.00025782,84098.0,84097.0,0.51668785]
[1742145432369,0.00025782,84098.0,84097.0,2.01668785]
[1742145433815,0.00025782,84098.0,84097.0,2.02836162]
[1742145434601,0.00025782,84098.0,84097.0,2.03436162]
[1742145436417,0.00025782,84098.0,84097.0,0.53436162]
[1742145436831,0.00025782,84098.0,84097.0,0.54340873]
[1742145437031,0.00025782,84098.0,84097.0,0.53436162]
[1742145437617,0.00025782,84098.0,84097.0,0.51982077]
[1742145437745,0.00025782,84098.0,84097.0,0.52836162]
[1742145438124,0.00025782,84098.0,84097.0,0.32054085]
[1742145438348,0.00025782,84098.0,84097.0,0.006]
[1742145438349,0.20240182,84098.0,84097.0,0.006]
[1742145438556,0.190279,84087.0,84086.0,0.00895505]
[1742145438729,0.202171,84087.0,84086.0,0.00895505]
[1742145438948,0.011892,84087.0,84086.0,0.01454085]
[1742145439353,0.190281,84086.0,84084.0,0.14332]
[1742145439546,0.011892,84087.0,84070.0,0.4117]
[1742145439547,0.190315,84071.0,84070.0,0.4117]
[1742145439747,0.011894,84070.0,84069.0,0.10565685]
[1742145439903,0.011894,84070.0,84069.0,0.40565685]
[1742145440103,0.011894,84070.0,84069.0,0.10565685]
[1742145441072,0.01198207,84070.0,84069.0,0.10565685]
[1742145441842,8.807e-05,84070.0,84069.0,0.1201977]
[1742145442012,8.807e-05,84070.0,84069.0,0.6224107]
[1742145442397,8.807e-05,84070.0,84069.0,0.6244107]
[1742145442802,8.807e-05,84070.0,84069.0,0.6224107]
[1742145443117,8.807e-05,84070.0,84069.0,0.51675385]
[1742145443550,8.807e-05,84070.0,84069.0,0.51975385]
[1742145443743,8.807e-05,84070.0,84069.0,0.66003385]
[1742145445032,0.01873121,84070.0,84069.0,0.66003385]
[1742145445229,0.01873121,84070.0,84069.0,0.66403385]
[1742145446411,0.22094221,84070.0,84069.0,0.31854085]
[1742145446985,8.807e-05,84070.0,84069.0,0.31854085]
[1742145447285,8.807e-05,84070.0,84069.0,0.31887965]
[1742145448194,8.807e-05,84070.0,84069.0,0.33077365]
[1742145448831,8.807e-05,84070.0,84069.0,1.82677365]
[1742145449218,8.807e-05,84070.0,84069.0,1.82977365]
[1742145449444,8.807e-05,84070.0,84069.0,2.23847365]
[1742145449661,8.807e-05,84070.0,84069.0,2.24247365]
[1742145450504,8.807e-05,84070.0,84069.0,2.23847365]
[1742145452338,8.807e-05,84070.0,84069.0,2.24447365]
[1742145457594,7e-08,84070.0,84069.0,2.24447365]
[1742145457811,7e-08,84070.0,84069.0,2.36404868]
[1742145458045,0.0001697,84098.0,84097.0,0.502147]
[1742145458267,0.00025774,84098.0,84097.0,0.65992785]
[1742145459816,0.00025774,84098.0,84097.0,0.66292785]
[1742145460961,0.00025774,84098.0,84097.0,2.16292785]
[1742145461384,0.00025774,84098.0,84097.0,2.17468978]
[1742145461613,0.00025774,84098.0,84097.0,2.19845754]
[1742145462062,0.00025774,84098.0,84097.0,2.19545754]
[1742145462262,0.00025774,84098.0,84097.0,2.20145754]
[1742145463165,0.00025774,84098.0,84097.0,0.70145754]
[1742145463807,0.00025774,84098.0,84097.0,0.71034825]
[1742145464731,0.01889465,84098.0,84097.0,0.71034825]
[1742145465794,0.01889465,84098.0,84097.0,0.33230278]
[1742145465998,0.01889465,84098.0,84097.0,0.306]
[1742145466160,0.03078465,84098.0,84097.0,0.306]
[1742145466561,0.01214774,84098.0,84097.0,0.306]
[1742145466771,0.00025774,84098.0,84097.0,0.32054085]
[1742145467355,0.00025774,84098.0,84097.0,0.31454085]
[1742145467828,0.00025774,84098.0,84097.0,0.51668785]
[1742145468439,0.00025774,84098.0,84097.0,0.51968785]
[1742145469330,0.00025774,84098.0,84097.0,0.51668785]
[1742145469559,0.00025774,84098.0,84097.0,0.52068785]
[1742145469894,0.00025774,84098.0,84097.0,0.66384785]
[1742145470112,0.00025774,84098.0,84097.0,0.66884785]
[1742145471459,0.00025774,84098.0,84097.0,2.16884785]
[1742145471811,0.00025774,84098.0,84097.0,2.15984785]
[1742145472111,0.00025774,84098.0,84097.0,2.16584785]
[1742145472535,0.00025774,84098.0,84097.0,2.15395685]
[1742145472734,0.00025774,84098.0,84097.0,2.02268785]
[1742145472933,0.00025774,84098.0,84097.0,0.33243185]
[1742145472934,0.0188945,84098.0,84097.0,0.33243185]
[1742145473270,0.0188945,84098.0,84097.0,0.32054085]
[1742145473443,0.0188945,84098.0,84097.0,0.51668785]
[1742145474004,0.0188945,84098.0,84097.0,0.52168785]
[1742145474205,0.0188945,84098.0,84097.0,0.31954085]
[1742145474405,0.0188945,84098.0,84097.0,0.33143185]
[1742145477287,0.0188945,84098.0,84097.0,0.31954085]
[1742145477863,0.0188945,84098.0,84097.0,0.50979685]
[1742145478247,0.0188945,84098.0,84097.0,0.52168785]
[1742145478877,0.0188945,84098.0,84097.0,2.02168785]
[1742145480100,0.0188945,84098.0,84097.0,1.83143185]
[1742145480305,0.0188945,84098.0,84097.0,1.81954085]
[1742145480505,0.0188945,84098.0,84097.0,2.02168785]
[1742145481663,0.0188945,84098.0,84097.0,2.01668785]
[1742145482030,0.0188945,84098.0,84097.0,2.02068785]
[1742145482226,0.0188945,84098.0,84097.0,0.31454085]
[1742145482434,0.0188945,84098.0,84097.0,0.50479685]
[1742145482638,0.0188945,84098.0,84097.0,0.51668785]
[1742145482880,0.0188945,84098.0,84097.0,0.52168785]
[1742145483074,0.0188945,84098.0,84097.0,0.51668785]
[1742145483266,0.0188945,84098.0,84097.0,0.31854085]
[1742145485072,0.0188945,84098.0,84094.0,0.21392372]
[1742145485073,0.202152,84095.0,84094.0,0.02631257]
[1742145485205,0.202152,84095.0,84082.0,0.011893]
[1742145485206,0.011893,84081.0,84076.0,0.011894]
[1742145485421,0.202187,84081.0,84077.0,0.14308]
[1742145485649,0.202187,84081.0,84075.0,0.011894]
[1742145485650,0.202198,84076.0,84075.0,0.14308]
[1742145485849,0.202198,84076.0,84070.0,0.0003388]
[1742145486057,0.202198,84076.0,84070.0,0.5025498]
[1742145486263,0.202198,84076.0,84070.0,0.2025498]
[1742145486501,0.202198,84076.0,84071.0,0.02643485]
[1742145486641,0.202198,84076.0,84070.0,0.0122328]
[1742145486642,0.202202,84075.0,84070.0,0.0122328]
[1742145486822,0.190309,84074.0,84071.0,0.01454085]
[1742145487025,0.202203,84074.0,84071.0,0.01454085]
[1742145487646,0.202206,84073.0,84071.0,0.01454085]
[1742145487859,0.011894,84072.0,84071.0,0.01454085]
[1742145488075,0.190296,84080.0,84076.0,0.01454085]
[1742145488281,0.190294,84080.0,84076.0,0.01454085]
[1742145488619,0.011893,84079.0,84076.0,0.01454085]
[1742145489458,0.011894,84074.0,84073.0,0.01454085]
[1742145490502,0.011894,84074.0,84070.0,0.0003388]
[1742145490503,0.202209,84071.0,84070.0,0.0003388]
[1742145491753,0.202209,84071.0,84070.0,0.01587965]
[1742145494410,0.220853,84071.0,84070.0,0.0013388]
[1742145494742,0.2337553,84071.0,84070.0,0.0013388]
[1742145495204,0.089294,84070.0,84069.0,6e-07]
[1742145495404,0.137494,84070.0,84069.0,6e-07]
[1742145495973,0.13868822,84070.0,84069.0,6e-07]
[1742145496823,0.14268822,84070.0,84069.0,6e-07]
[1742145497047,0.141494,84070.0,84069.0,6e-07]
[1742145497265,0.280574,84070.0,84069.0,6e-07]
[1742145497678,0.285574,84070.0,84069.0,6e-07]
[1742145498120,0.286574,84070.0,84069.0,6e-07]
[1742145498330,0.285574,84070.0,84069.0,6e-07]
[1742145498749,0.82674903,84070.0,84069.0,6e-07]
[1742145498960,0.82674903,84070.0,84032.0,9.1e-07]
[1742145498961,0.279659,84050.0,84032.0,9.1e-07]
[1742145499202,0.279659,84050.0,84049.0,0.00075016]
[1742145499412,0.327859,84050.0,84049.0,0.00075016]
[1742145502702,0.743459,84050.0,84049.0,0.00075016]
[1742145503064,0.743459,84050.0,84049.0,1.6e-07]
[1742145503299,1.18668584,84050.0,84049.0,1.6e-07]
[1742145503520,1.18668584,84050.0,84032.0,9.1e-07]
[1742145503521,0.327901,84033.0,84032.0,9.1e-07]
[1742145503730,0.470981,84033.0,84032.0,9.1e-07]
[1742145504153,0.891581,84033.0,84032.0,9.1e-07]
[1742145504369,0.9415808,84033.0,84032.0,9.1e-07]
[1742145504579,0.76215922,84033.0,84032.0,9.1e-07]
[1742145504793,0.91027922,84033.0,84032.0,9.1e-07]
[1742145504998,0.91728667,84033.0,84032.0,9.1e-07]
[1742145505802,0.77416667,84033.0,84032.0,9.1e-07]
[1742145506010,0.205301,84033.0,84032.0,9.1e-07]
[1742145506216,0.206301,84033.0,84032.0,9.1e-07]
[1742145506615,0.209301,84033.0,84032.0,9.1e-07]
[1742145506861,0.202301,84033.0,84032.0,9.1e-07]
[1742145507087,0.20349522,84033.0,84032.0,9.1e-07]
[1742145507337,0.20649522,84033.0,84032.0,9.1e-07]
[1742145507815,0.81498698,84033.0,84032.0,9.1e-07]
[1742145508084,0.86379256,84033.0,84032.0,9.1e-07]
[1742145508312,0.7965008,84033.0,84032.0,0.00100091]
[1742145508556,0.743501,84033.0,84032.0,0.00100091]
[1742145508804,0.746501,84033.0,84032.0,9.1e-07]
[1742145509040,0.91127916,84033.0,84032.0,9.1e-07]
[1742145509280,0.90527916,84033.0,84032.0,9.1e-07]
[1742145509718,0.91427916,84033.0,84032.0,9.1e-07]
[1742145510348,0.91627916,84033.0,84032.0,9.1e-07]
[1742145510767,0.91127916,84033.0,84032.0,9.1e-07]
[1742145511219,0.892621,84033.0,84032.0,9.1e-07]
[1742145511636,0.886621,84033.0,84032.0,9.1e-07]
[1742145511780,0.888621,84033.0,84032.0,9.1e-07]
[1742145512209,0.889621,84033.0,84032.0,9.1e-07]
[1742145512407,0.891621,84033.0,84032.0,9.1e-07]
[1742145512627,0.888621,84033.0,84032.0,9.1e-07]
[1742145512830,0.891621,84033.0,84032.0,9.1e-07]
[1742145513218,0.895621,84033.0,84032.0,9.1e-07]
[1742145514031,0.752501,84033.0,84032.0,9.1e-07]
[1742145514235,0.895621,84033.0,84032.0,9.1e-07]
[1742145514653,0.626901,84033.0,84032.0,9.1e-07]
[1742145515066,0.621901,84033.0,84032.0,9.1e-07]
[1742145515413,0.617901,84033.0,84032.0,9.1e-07]
[1742145515620,0.63955802,84033.0,84032.0,9.1e-07]
[1742145515837,0.64155802,84033.0,84032.0,9.1e-07]
[1742145515951,0.63855802,84033.0,84032.0,9.1e-07]
[1742145516152,0.63655802,84033.0,84032.0,9.1e-07]
[1742145516371,0.63955802,84033.0,84032.0,9.1e-07]
[1742145516782,0.63655802,84033.0,84032.0,9.1e-07]
[1742145516981,0.63755802,84033.0,84032.0,9.1e-07]
[1742145517794,0.22195802,84033.0,84032.0,9.1e-07]
[1742145518242,0.203301,84033.0,84032.0,9.1e-07]
[1742145519709,0.20449522,84033.0,84032.0,9.1e-07]
[1742145520541,0.28069522,84033.0,84032.0,9.1e-07]
[1742145520755,0.202301,84033.0,84032.0,9.1e-07]
[1742145520963,0.34657522,84033.0,84032.0,9.1e-07]
[1742145521171,0.345381,84033.0,84032.0,9.1e-07]
[1742145521382,0.3640392,84033.0,84032.0,9.1e-07]
[1742145522429,0.3660392,84033.0,84032.0,9.1e-07]
[1742145522754,0.3690392,84033.0,84032.0,9.1e-07]
[1742145522961,0.3670392,84033.0,84032.0,9.1e-07]
[1742145523393,0.3720392,84033.0,84032.0,9.1e-07]
[1742145523814,0.7876392,84033.0,84032.0,9.1e-07]
[1742145525539,0.7796392,84033.0,84032.0,9.1e-07]
[1742145525944,0.7826392,84033.0,84032.0,9.1e-07]
[1742145526443,0.7796392,84033.0,84032.0,9.1e-07]
[1742145526667,0.7846392,84033.0,84032.0,9.1e-07]
[1742145526906,0.7826392,84033.0,84032.0,9.1e-07]
[1742145527124,0.7836392,84033.0,84032.0,9.1e-07]
[1742145527776,0.764981,84033.0,84032.0,9.1e-07]
[1742145528452,0.617901,84033.0,84032.0,9.1e-07]
[1742145528909,0.620901,84033.0,84032.0,9.1e-07]
[1742145529620,0.202301,84033.0,84032.0,9.1e-07]
[1742145530052,0.203301,84033.0,84032.0,9.1e-07]
[1742145530284,0.205301,84033.0,84032.0,9.1e-07]
[1742145531199,0.2239576,84033.0,84032.0,9.1e-07]
[1742145532201,0.205301,84033.0,84032.0,9.1e-07]
[1742145533269,0.20649522,84033.0,84032.0,9.1e-07]
[1742145534796,0.205301,84033.0,84032.0,9.1e-07]
[1742145535815,0.202301,84033.0,84032.0,9.1e-07]
[1742145535929,0.203301,84033.0,84032.0,9.1e-07]
[1742145536657,0.220957,84033.0,84032.0,9.1e-07]
[1742145537930,0.221957,84033.0,84032.0,9.1e-07]
[1742145538349,0.203301,84033.0,84032.0,9.1e-07]
[1742145538557,0.20449522,84033.0,84032.0,9.1e-07]
[1742145539390,0.20349522,84033.0,84032.0,9.1e-07]
[1742145539768,0.20549522,84033.0,84032.0,9.1e-07]
[1742145541371,0.2241517,84033.0,84032.0,9.1e-07]
[1742145542779,0.3039517,84033.0,84032.0,9.1e-07]
[1742145542979,0.30275748,84033.0,84032.0,9.1e-07]
[1742145544215,0.30075748,84033.0,84032.0,9.1e-07]
[1742145544558,0.30775748,84033.0,84032.0,9.1e-07]
[1742145546988,0.22795748,84033.0,84032.0,9.1e-07]
[1742145547202,0.64355748,84033.0,84032.0,9.1e-07]
[1742145548707,0.78655748,84033.0,84032.0,9.1e-07]
[1742145552385,0.64355748,84033.0,84032.0,9.1e-07]
[1742145552587,0.624901,84033.0,84032.0,9.1e-07]
[1742145553007,0.007,84033.0,84032.0,9.1e-07]
[1742145553210,0.007,84033.0,84032.0,0.01190091]
[1742145553413,0.007,84033.0,84032.0,0.32644176]
[1742145553621,0.007,84033.0,84032.0,1.90714176]
[1742145553832,0.007,84033.0,84032.0,1.95694176]
[1742145554103,0.007,84033.0,84032.0,2.09994176]
[1742145554528,0.004,84033.0,84032.0,2.09994176]
[1742145554738,0.0001695,84049.0,84048.0,0.011897]
[1742145554955,0.0001695,84049.0,84048.0,0.79040485]
[1742145555164,0.0001695,84049.0,84048.0,0.78840485]
[1742145556469,0.0001695,84049.0,84048.0,0.58814085]
[1742145557177,0.2024315,84049.0,84048.0,0.3]
[1742145557414,0.2024315,84049.0,84039.0,0.0833]
[1742145557415,0.202284,84040.0,84039.0,0.0833]
[1742145557835,0.202271,84046.0,84039.0,0.0833]
[1742145558040,0.0001695,84049.0,84045.0,0.190374]
[1742145558259,0.0001695,84049.0,84045.0,0.202272]
[1742145558681,0.0001695,84049.0,84048.0,0.011897]
[1742145559382,0.0001695,84049.0,84048.0,0.32643785]
[1742145559584,0.0001695,84049.0,84048.0,0.46939785]
[1742145559800,0.0001695,84049.0,84048.0,0.45750085]
[1742145559980,0.0001695,84049.0,84048.0,0.65976485]
[1742145560590,0.0001695,84049.0,84048.0,0.45750085]
[1742145561568,0.01881951,84049.0,84048.0,0.45750085]
[1742145561883,0.22108151,84049.0,84048.0,0.45750085]
[1742145562238,0.22108151,84049.0,84041.0,0.3]
[1742145562239,0.202278,84042.0,84041.0,0.3]
[1742145562445,0.011898,84042.0,84041.0,0.3]
[1742145563788,0.202278,84042.0,84041.0,0.3]
[1742145564818,0.011898,84043.0,84041.0,0.3]
[1742145565050,0.011897,84052.0,84045.0,0.011898]
[1742145565252,0.011897,84052.0,84047.0,0.190369]
[1742145565460,0.202253,84053.0,84047.0,0.202267]
[1742145566095,0.202253,84053.0,84046.0,0.311898]
[1742145566096,0.202257,84052.0,84046.0,0.311898]
[1742145566722,0.202257,84052.0,84047.0,0.190369]
[1742145567706,0.011896,84056.0,84048.0,0.32643785]
[1742145567851,0.202254,84053.0,84048.0,0.32643785]
[1742145569061,0.011897,84053.0,84048.0,0.32643785]
[1742145569272,0.190335,84063.0,84048.0,0.40453785]
[1742145569476,0.011895,84065.0,84048.0,0.40453785]
[1742145569682,0.0001695,84049.0,84048.0,0.40453785]
[1742145570616,0.0001695,84049.0,84048.0,0.54741785]
[1742145572453,0.0001695,84049.0,84048.0,0.40453785]
[1742145572670,0.0001695,84049.0,84048.0,0.54741785]
[1742145573758,0.0001695,84049.0,84048.0,0.54941785]
[1742145575274,0.0001695,84049.0,84048.0,0.59751785]
[1742145576868,0.0001695,84049.0,84048.0,2.09751785]
[1742145577065,0.0001695,84049.0,84048.0,2.50921785]
[1742145577503,0.0001695,84049.0,84048.0,2.36633785]
[1742145577705,0.0001695,84049.0,84048.0,2.51807614]
[1742145578114,0.0001695,84049.0,84048.0,2.51641514]
[1742145578279,0.0001695,84049.0,84048.0,2.51841514]
[1742145578737,0.0011695,84049.0,84048.0,2.63999017]
[1742145578937,5e-07,84049.0,84048.0,2.63729017]
[1742145579954,5e-07,84049.0,84048.0,2.63529017]
[1742145580111,0.000411,84050.0,84049.0,0.502262]
[1742145580315,0.000411,84050.0,84049.0,0.990062]
[1742145580730,0.000411,84050.0,84049.0,1.00460285]
[1742145581451,0.001411,84050.0,84049.0,1.00860285]
[1742145582515,0.001411,84050.0,84049.0,1.01460285]
[1742145587261,0.0001694,84070.0,84069.0,0.202213]
[1742145587570,0.0001694,84070.0,84069.0,1.20160301]
[1742145587780,0.0001694,84070.0,84069.0,1.20041385]
[1742145587983,0.0001694,84070.0,84069.0,2.70041385]
[1742145588406,0.0001694,84070.0,84069.0,2.65111385]
[1742145588609,0.0001694,84070.0,84069.0,2.57221385]
[1742145588824,0.0001694,84070.0,84069.0,2.57621385]
[1742145588996,0.0001694,84070.0,84069.0,2.57221385]
[1742145589231,0.0001694,84070.0,84069.0,2.57821385]
[1742145589433,0.0001694,84070.0,84069.0,2.59038871]
[1742145589652,0.0001694,84070.0,84069.0,1.08438871]
[1742145589851,0.0001694,84070.0,84069.0,1.08938871]
[1742145590050,0.0001694,84070.0,84069.0,1.11358016]
[1742145590264,0.0001694,84070.0,84069.0,2.61958016]
[1742145590450,0.0001694,84070.0,84069.0,2.47682016]
[1742145590607,0.2023804,84070.0,84069.0,0.4177]
[1742145590820,0.0001694,84070.0,84069.0,0.4177]
[1742145591023,0.0001694,84070.0,84069.0,0.306]
[1742145591224,0.0120634,84070.0,84069.0,0.012]
[1742145591680,0.0120634,84070.0,84069.0,0.006]
[1742145592057,0.0001694,84070.0,84069.0,0.01]
[1742145592751,0.0001694,84070.0,84069.0,0.021894]
[1742145592952,0.0001694,84070.0,84069.0,0.004]
[1742145593195,0.0001694,84070.0,84069.0,0.008]
[1742145593577,0.0001694,84070.0,84069.0,0.019894]
[1742145593783,0.0001694,84070.0,84069.0,0.008]
[1742145594704,0.01881397,84070.0,84069.0,0.008]
[1742145597649,0.0120634,84070.0,84069.0,0.008]
[1742145598807,0.0120634,84070.0,84069.0,0.004]
[1742145599213,0.011895,84065.0,84062.0,0.01454085]
[1742145600003,0.202228,84064.0,84062.0,0.01454085]
[1742145600707,0.011895,84063.0,84062.0,0.01454085]
[1742145601099,0.19036,84051.0,84050.0,0.0003388]
[1742145601300,0.202257,84051.0,84050.0,0.0003388]
[1742145601504,0.20345122,84051.0,84050.0,0.0003388]
[1742145602835,0.28535122,84051.0,84050.0,0.0003388]
[1742145603043,0.284157,84051.0,84050.0,0.0003388]
[1742145603678,0.284157,84051.0,84050.0,0.0013388]
[1742145604303,0.284157,84051.0,84050.0,0.0003388]
[1742145604498,0.30280997,84051.0,84050.0,0.0023388]
[1742145604673,0.3027105,84051.0,84050.0,0.0023388]
[1742145604889,0.3027105,84051.0,84050.0,0.0003388]
[1742145608729,0.28405753,84051.0,84050.0,0.0003388]
[1742145611218,0.28405753,84051.0,84050.0,8e-07]
[1742145611424,0.28405753,84051.0,84048.0,8.7e-07]
[1742145611425,0.202262,84049.0,84048.0,8.7e-07]
[1742145611620,0.284184,84040.0,84039.0,8.7e-07]
[1742145611809,0.471864,84040.0,84039.0,8.7e-07]
[1742145612779,0.474864,84040.0,84039.0,8.7e-07]
[1742145612981,0.471864,84040.0,84039.0,8.7e-07]
[1742145613209,0.49052077,84040.0,84039.0,8.7e-07]
[1742145613458,0.49352077,84040.0,84039.0,8.7e-07]
[1742145614891,0.49052077,84040.0,84039.0,8.7e-07]
[1742145615324,0.49352077,84040.0,84039.0,8.7e-07]
[1742145615531,0.22394077,84040.0,84039.0,8.7e-07]
[1742145616160,0.003,84040.0,84039.0,0.01454172]
[1742145616572,0.011898,84043.0,84040.0,0.01454085]
[1742145616780,0.001,84040.0,84039.0,0.01189987]
[1742145617005,0.001,84040.0,84039.0,0.53846959]
[1742145617208,0.001,84040.0,84039.0,0.53727987]
[1742145618000,0.011897,84048.0,84044.0,0.3]
[1742145618207,0.011897,84048.0,84044.0,0.31223571]
[1742145618400,4.107e-05,84051.0,84046.0,0.311898]
[1742145618583,0.011897,84049.0,84045.0,0.01454085]
[1742145619372,0.03054708,84049.0,84045.0,0.01454085]
[1742145619572,0.03054708,84049.0,84047.0,0.01454085]
[1742145619779,0.03054708,84049.0,84045.0,0.01454085]
[1742145619975,0.03054708,84049.0,84048.0,0.01454085]
[1742145619976,0.01865008,84049.0,84048.0,0.01454085]
[1742145621622,0.22091208,84049.0,84048.0,0.01454085]
[1742145621826,0.22091208,84049.0,84048.0,0.01654085]
[1742145622817,0.22091208,84049.0,84048.0,0.002]
[1742145623045,0.2980063,84049.0,84048.0,0.002]
[1742145623242,0.29681208,84049.0,84048.0,0.002]
[1742145624207,0.29681208,84049.0,84048.0,0.001]
[1742145625038,0.29681208,84049.0,84039.0,8.7e-07]
[1742145625039,0.011899,84040.0,84039.0,8.7e-07]
[1742145625274,0.20347822,84040.0,84039.0,8.7e-07]
[1742145625852,0.22213285,84040.0,84039.0,8.7e-07]
[1742145626463,0.22247165,84040.0,84039.0,8.7e-07]
[1742145628599,0.22127743,84040.0,84039.0,8.7e-07]
[1742145631705,0.22227743,84040.0,84039.0,8.7e-07]
[1742145631907,0.22347165,84040.0,84039.0,8.7e-07]
[1742145633391,0.22227743,84040.0,84039.0,8.7e-07]
[1742145635853,0.22127743,84040.0,84039.0,8.7e-07]
[1742145636331,0.22127743,84040.0,84039.0,0.00100087]
[1742145637524,0.22127743,84040.0,84039.0,0.00200087]
[1742145644447,0.22127743,84040.0,84039.0,0.00100087]
[1742145644670,0.22127743,84040.0,84039.0,0.00200087]
[1742145644876,0.22127743,84040.0,84039.0,0.00100087]
[1742145645458,0.22127743,84040.0,84039.0,8.7e-07]
[1742145646635,0.22227743,84040.0,84039.0,8.7e-07]
[1742145648648,0.22127743,84040.0,84039.0,8.7e-07]
[1742145648833,0.22227743,84040.0,84039.0,8.7e-07]
[1742145651698,0.22347165,84040.0,84039.0,8.7e-07]
[1742145652539,0.22227743,84040.0,84039.0,8.7e-07]
[1742145653186,0.30607165,84040.0,84039.0,8.7e-07]
[1742145653482,0.35387743,84040.0,84039.0,8.7e-07]
[1742145654427,0.76947743,84040.0,84039.0,8.7e-07]
[1742145655387,0.76847743,84040.0,84039.0,8.7e-07]
[1742145655590,0.77047743,84040.0,84039.0,8.7e-07]
[1742145655990,0.77447743,84040.0,84039.0,8.7e-07]
[1742145659384,0.89405246,84040.0,84039.0,8.7e-07]
[1742145659812,1.24905226,84040.0,84039.0,8.7e-07]
[1742145660055,1.12947723,84040.0,84039.0,8.7e-07]
[1742145660586,1.12947723,84040.0,84008.0,0.0003386]
[1742145660587,0.202358,84009.0,84008.0,0.0003386]
[1742145660801,0.011903,84008.0,84007.0,4e-07]
[1742145661024,0.202377,84001.0,84000.0,5.9e-07]
[1742145661216,0.20357122,84001.0,84000.0,5.9e-07]
[1742145661423,0.61917122,84001.0,84000.0,5.9e-07]
[1742145661663,0.693677,84001.0,84000.0,5.9e-07]
[1742145662026,0.88164094,84001.0,84000.0,5.9e-07]
[1742145662234,0.011906,83985.0,83984.0,1.9e-07]
[1742145662446,0.01310022,83985.0,83984.0,1.9e-07]
[1742145663502,0.42870022,83985.0,83984.0,1.9e-07]
[1742145663720,0.503206,83985.0,83984.0,1.9e-07]
[1742145663929,0.52187234,83985.0,83984.0,1.9e-07]
[1742145664419,0.71579234,83985.0,83984.0,1.9e-07]
[1742145664941,0.71579234,83985.0,83975.0,4e-08]
[1742145664942,0.207438,83976.0,83975.0,4e-08]
[1742145665108,0.202438,83976.0,83975.0,4e-08]
[1742145665311,0.202438,83976.0,83951.0,0.0008]
[1742145665312,0.202489,83955.0,83951.0,0.0008]
[1742145666957,0.26560519,83955.0,83954.0,0.0004114]
[1742145667151,0.26560519,83955.0,83951.0,0.0008]
[1742145667152,0.005,83952.0,83951.0,4e-07]
[1742145667363,0.24999751,83952.0,83951.0,1.4e-07]
[1742145667606,0.23329659,83952.0,83951.0,1.4e-07]
[1742145667820,0.26680641,83952.0,83951.0,1.4e-07]
[1742145668058,0.26561219,83952.0,83951.0,1.4e-07]
[1742145668612,0.2774136,83952.0,83951.0,0.00100014]
[1742145668948,0.2774136,83952.0,83951.0,1.4e-07]
[1742145669279,0.2794136,83952.0,83951.0,1.4e-07]
[1742145669611,0.21629741,83952.0,83951.0,1.4e-07]
[1742145670033,0.23797238,83952.0,83951.0,1.4e-07]
[1742145670627,0.23497238,83952.0,83951.0,1.4e-07]
[1742145670826,0.23397238,83952.0,83951.0,1.4e-07]
[1742145671222,0.22217097,83952.0,83951.0,1.4e-07]
[1742145672436,0.01967497,83952.0,83951.0,1.4e-07]
[1742145672637,0.01967497,83952.0,83951.0,0.07540014]
[1742145673095,0.01967497,83952.0,83951.0,0.40185199]
[1742145673296,0.01967497,83952.0,83951.0,0.44705199]
[1742145673831,0.01967497,83952.0,83951.0,0.43514099]
[1742145674029,0.01867497,83952.0,83951.0,0.44705199]
[1742145674435,0.01867497,83952.0,83951.0,0.44905199]
[1742145674815,0.01867497,83952.0,83951.0,0.44805199]
[1742145675233,0.01867497,83952.0,83951.0,0.44722149]
[1742145675438,0.01867497,83952.0,83951.0,0.44822149]
[1742145678131,0.190563,83962.0,83959.0,0.01454085]
[1742145678571,0.190563,83962.0,83959.0,0.01554085]
[1742145679073,0.190563,83962.0,83959.0,0.01454085]
[1742145679765,0.190563,83962.0,83959.0,0.01554085]
[1742145679971,0.202476,83961.0,83959.0,0.01554085]
[1742145680172,0.01191,83960.0,83959.0,0.001]
[1742145680378,0.01191,83960.0,83959.0,0.002]
[1742145680752,0.01310422,83960.0,83959.0,0.002]
[1742145680967,0.01191,83960.0,83959.0,0.001]
[1742145681594,0.01191,83960.0,83959.0,0.002]
[1742145682313,0.01191,83960.0,83959.0,0.001]
[1742145682661,0.01191,83960.0,83959.0,0.003]
[1742145683681,0.01191,83961.0,83959.0,0.003]
[1742145684104,0.20923274,83962.0,83959.0,0.003]
[1742145684956,0.202476,83960.0,83959.0,0.002]
[1742145685171,0.202476,83960.0,83959.0,0.003]
[1742145685385,0.190574,83957.0,83951.0,0.20266764]
[1742145685590,0.190581,83954.0,83952.0,0.01454085]
[1742145685794,0.011911,83953.0,83951.0,0.00016964]
[1742145686543,0.22116661,83953.0,83952.0,0.01454085]
[1742145686658,0.01867161,83953.0,83952.0,0.01454085]
[1742145686857,0.01867161,83953.0,83952.0,0.20512585]
[1742145687057,0.01867161,83953.0,83952.0,0.21703685]
[1742145687262,0.01867161,83953.0,83952.0,0.51703685]
[1742145687869,0.01867161,83953.0,83952.0,0.63993685]
[1742145688173,0.0003392,83960.0,83959.0,0.51701985]
[1742145689515,0.0003392,83960.0,83959.0,2.09831985]
[1742145690417,0.0003392,83960.0,83959.0,2.09631985]
[1742145691010,0.0003392,83960.0,83959.0,2.09731985]
[1742145691309,0.0003392,83960.0,83959.0,2.09631985]
[1742145691522,0.0013392,83960.0,83959.0,2.09731985]
[1742145692414,0.0013392,83960.0,83959.0,2.09831985]
[1742145692815,0.0013392,83960.0,83959.0,2.09731985]
[1742145693043,0.0013392,83960.0,83959.0,0.60231985]